bitfinex/quotes_BTCUSD_20260127
["timestamp","ask_amount","ask_price","bid_price","bid_amount"]
[1769547896308,0.0004,89472.0,89462.0,0.02264825]
[1769547897278,0.1362327,89471.0,89458.0,0.00013995]
[1769547897498,0.01,89462.0,89459.0,0.02264825]
[1769547897710,0.0558862,89468.0,89459.0,0.02264825]
[1769547897885,0.05588536,89469.0,89459.0,0.02264825]
[1769547898112,0.19211679,89471.0,89459.0,0.02264825]
[1769547898316,0.05588625,89468.0,89459.0,0.02264825]
[1769547898520,0.05588516,89470.0,89459.0,0.02264825]
[1769547899441,0.05588559,89469.0,89459.0,0.02264825]
[1769547900098,0.1362327,89470.0,89459.0,0.02264825]
[1769547900316,0.0004,89472.0,89459.0,0.02264825]
[1769547900709,0.1921178,89470.0,89459.0,0.02264825]
[1769547900924,0.0004,89472.0,89459.0,0.02264825]
[1769547901124,0.32874297,89470.0,89459.0,0.02264825]
[1769547901699,0.38462798,89470.0,89459.0,0.02264825]
[1769547901912,0.32874297,89470.0,89459.0,0.02264825]
[1769547902114,0.0004,89472.0,89460.0,0.02264825]
[1769547902317,0.32874297,89470.0,89460.0,0.02264825]
[1769547904028,0.11524,89472.0,89460.0,0.02264825]
[1769547904235,0.11524,89472.0,89461.0,0.02264825]
[1769547904471,0.11484,89471.0,89461.0,0.02264825]
[1769547905451,0.0004,89476.0,89458.0,0.00013995]
[1769547905657,0.0004,89487.0,89462.0,0.13999865]
[1769547905873,0.11484,89491.0,89465.0,0.02264825]
[1769547906238,0.11484,89491.0,89470.0,0.13999865]
[1769547906439,0.11484,89491.0,89458.0,0.00013995]
[1769547906440,0.11484,89491.0,89473.0,0.02264825]
[1769547906655,0.11484,89491.0,89477.0,0.02264825]
[1769547906860,0.11484,89491.0,89479.0,0.02264825]
[1769547907077,0.1362327,89489.0,89461.0,0.13999865]
[1769547907283,0.1362327,89489.0,89463.0,0.13999865]
[1769547907486,0.1362327,89489.0,89466.0,0.02264825]
[1769547907692,0.1362327,89489.0,89468.0,0.02264825]
[1769547908123,0.1362327,89489.0,89468.0,0.13999865]
[1769547908352,0.1362327,89489.0,89469.0,0.02264825]
[1769547908976,0.32874297,89480.0,89469.0,0.02264825]
[1769547909197,0.32874297,89480.0,89458.0,0.00013995]
[1769547909198,0.1462327,89469.0,89458.0,0.00013995]
[1769547909409,0.1362327,89467.0,89458.0,0.00013995]
[1769547909615,0.32874297,89460.0,89451.0,0.02264825]
[1769547909849,0.32888282,89460.0,89451.0,0.02264825]
[1769547910058,0.32888282,89460.0,89418.0,0.07980931]
[1769547910059,0.32888282,89460.0,89446.0,0.02264825]
[1769547910688,0.00013985,89460.0,89446.0,0.02264825]
[1769547915928,0.1362327,89459.0,89446.0,0.02264825]
[1769547917705,0.00013985,89460.0,89446.0,0.02264825]
[1769547917918,0.22350697,89483.0,89440.0,0.0011153]
[1769547917919,0.32874297,89490.0,89448.0,0.13999865]
[1769547918132,0.32920929,89490.0,89458.0,0.13999865]
[1769547918341,0.14168,89489.0,89441.0,0.1636401]
[1769547918580,0.00046632,89490.0,89469.0,0.05588499]
[1769547918807,0.00046632,89490.0,89472.0,0.05588296]
[1769547918808,0.11484,89489.0,89472.0,0.05588296]
[1769547919037,0.11484,89489.0,89476.0,0.13999865]
[1769547919241,0.11484,89489.0,89434.0,0.36270834]
[1769547919242,0.01648407,89439.0,89435.0,0.0258907]
[1769547919453,0.0656,89443.0,89435.0,0.13999865]
[1769547919653,0.02684,89459.0,89434.0,0.0003114]
[1769547919654,0.11484,89451.0,89437.0,0.0258907]
[1769547920524,0.11484,89451.0,89437.0,0.02603055]
[1769547920923,0.22351525,89480.0,89437.0,0.02603055]
[1769547921121,0.19211691,89471.0,89441.0,0.0303889]
[1769547921344,0.1362327,89459.0,89438.0,0.0303889]
[1769547921697,0.1362327,89458.0,89438.0,0.0303889]
[1769547923076,0.1362327,89449.0,89438.0,0.0303889]
[1769547923656,0.1362327,89449.0,89437.0,0.00013985]
[1769547925139,0.11484,89459.0,89438.0,0.03713667]
[1769547925343,0.11484,89459.0,89439.0,0.03713667]
[1769547925569,0.25403168,89459.0,89439.0,0.03713667]
[1769547925778,0.11484,89459.0,89439.0,0.13857445]
[1769547925981,0.11484,89458.0,89440.0,0.03713667]
[1769547928716,0.11484,89458.0,89440.0,0.03747227]
[1769547929497,0.13919168,89457.0,89440.0,0.03747227]
[1769547930298,0.33715866,89548.0,89440.0,0.03747227]
[1769547930299,0.13919168,89491.0,89440.0,0.32901632]
[1769547930499,0.11484,89483.0,89440.0,0.39197403]
[1769547930704,0.13919168,89480.0,89453.0,0.13857445]
[1769547931159,0.11484,89479.0,89440.0,0.14740003]
[1769547931323,0.25403168,89479.0,89457.0,0.04163511]
[1769547931541,0.25403168,89479.0,89458.0,0.05589186]
[1769547931739,0.25403168,89479.0,89459.0,0.04163511]
[1769547931924,0.11484,89479.0,89458.0,0.04163511]
[1769547932126,0.11484,89479.0,89464.0,0.05588807]
[1769547932321,0.13919168,89493.0,89466.0,0.04163511]
[1769547932668,0.13919168,89493.0,89449.0,0.3353857]
[1769547932669,0.14168,89491.0,89463.0,0.13857445]
[1769547932871,0.14168,89491.0,89441.0,0.03561709]
[1769547932872,0.14168,89491.0,89475.0,0.05588109]
[1769547933018,0.14168,89491.0,89479.0,0.04388449]
[1769547933391,0.14214632,89491.0,89479.0,0.04388449]
[1769547933502,0.14214632,89491.0,89479.0,0.13857445]
[1769547933741,0.14214632,89491.0,89480.0,0.04388449]
[1769547933981,0.00046632,89491.0,89480.0,0.04388449]
[1769547934187,0.11484,89490.0,89480.0,0.04388449]
[1769547934384,0.11484,89490.0,89442.0,0.44721707]
[1769547934385,0.11484,89490.0,89466.0,0.03888449]
[1769547934587,0.25403168,89490.0,89466.0,0.03888449]
[1769547934797,0.13919168,89489.0,89463.0,0.06228967]
[1769547935035,0.13919168,89485.0,89463.0,0.06213157]
[1769547935343,0.15030718,89485.0,89463.0,0.06213157]
[1769547936291,0.11673136,89485.0,89463.0,0.06213157]
[1769547936440,0.10561586,89485.0,89464.0,0.0246057]
[1769547937668,0.11484,89490.0,89463.0,0.06213157]
[1769547937849,0.11484,89490.0,89469.0,0.13857445]
[1769547938044,0.11484,89490.0,89463.0,0.06213157]
[1769547938045,0.13919168,89489.0,89470.0,0.02476377]
[1769547940987,0.13913169,89489.0,89470.0,0.02476377]
[1769547941677,0.11484,89490.0,89475.0,0.02476377]
[1769547941881,0.11484,89490.0,89476.0,0.02476377]
[1769547942061,0.11484,89489.0,89478.0,0.02476377]
[1769547942262,0.11484,89489.0,89478.0,0.02460573]
[1769547942776,0.0002052,89498.0,89465.0,0.02476377]
[1769547942975,0.02296,89497.0,89484.0,0.02476377]
[1769547943143,0.02296,89497.0,89486.0,0.02476377]
[1769547943340,0.02296,89497.0,89486.0,0.02460574]
[1769547943859,0.13919168,89496.0,89484.0,0.00013981]
[1769547944058,0.02296,89497.0,89446.0,0.44719692]
[1769547944059,0.02058621,89495.0,89465.0,0.05588725]
[1769547944257,0.13919168,89494.0,89465.0,0.13857445]
[1769547944473,0.13919168,89494.0,89468.0,0.02476377]
[1769547945304,0.13919168,89494.0,89470.0,0.05588431]
[1769547945502,0.13919168,89494.0,89471.0,0.08064756]
[1769547945709,0.13919168,89494.0,89473.0,0.02476377]
[1769547946281,0.13919168,89494.0,89474.0,0.05588186]
[1769547946491,0.13919168,89494.0,89474.0,0.02476377]
[1769547946766,0.00013973,89495.0,89464.0,0.02476377]
[1769547947050,0.00013973,89495.0,89463.0,0.06213157]
[1769547947051,0.11493973,89495.0,89484.0,0.02476377]
[1769547947814,0.0004,89500.0,89463.0,0.06213157]
[1769547948018,0.08028,89512.0,89499.0,0.13857445]
[1769547948234,0.08028,89512.0,89500.0,0.01815721]
[1769547948422,0.08028,89512.0,89500.0,0.0163422]
[1769547948752,0.08028,89512.0,89488.0,0.22349238]
[1769547948753,0.08028,89512.0,89502.0,0.02476377]
[1769547949377,0.1148,89517.0,89502.0,0.02476377]
[1769547949888,0.1148,89517.0,89497.0,0.06052293]
[1769547950089,0.13946208,89514.0,89497.0,0.06052293]
[1769547950298,0.13946208,89514.0,89486.0,0.02476377]
[1769547950499,0.13946208,89514.0,89494.0,0.0602251]
[1769547950707,0.13946208,89514.0,89493.0,0.02476377]
[1769547950926,0.1148,89517.0,89486.0,0.22396467]
[1769547950927,0.1148,89517.0,89486.0,0.06130204]
[1769547951124,0.0004,89530.0,89486.0,0.06130204]
[1769547951125,0.0004,89530.0,89515.0,0.02476377]
[1769547951300,0.13959168,89530.0,89515.0,0.01645106]
[1769547951548,0.13959168,89530.0,89505.0,0.13857445]
[1769547951719,0.02267137,89529.0,89487.0,0.13857445]
[1769547951918,0.13919168,89526.0,89498.0,0.05586659]
[1769547952127,0.13919168,89524.0,89498.0,0.02476377]
[1769547952335,0.00013998,89524.0,89507.0,0.02476377]
[1769547952551,0.00013998,89524.0,89510.0,0.08062309]
[1769547952753,0.00013998,89524.0,89510.0,0.02476377]
[1769547953160,0.00013998,89524.0,89490.0,0.32868072]
[1769547953161,0.00013998,89524.0,89491.0,0.13857445]
[1769547953569,0.00013998,89524.0,89492.0,0.13857445]
[1769547953902,0.00013998,89524.0,89513.0,0.02476377]
[1769547954285,0.00013998,89524.0,89511.0,0.05585861]
[1769547954487,0.00013998,89524.0,89510.0,0.02445517]
[1769547954695,0.00013998,89524.0,89514.0,0.14155752]
[1769547954906,0.00013998,89524.0,89515.0,0.02445517]
[1769547955158,0.00013998,89524.0,89517.0,0.14155752]
[1769547955361,0.0004,89530.0,89524.0,0.05599079]
[1769547955559,0.13668367,89546.0,89524.0,0.02459515]
[1769547956015,0.0246073,89547.0,89514.0,0.06277029]
[1769547956016,0.0002704,89547.0,89520.0,0.32868072]
[1769547956190,0.00049,89560.0,89532.0,0.05584577]
[1769547956191,0.0243369,89558.0,89532.0,0.05584577]
[1769547956466,0.13668367,89557.0,89530.0,0.02445517]
[1769547956600,0.25148367,89557.0,89534.0,0.02445517]
[1769547957025,0.13668367,89557.0,89534.0,0.02445517]
[1769547957244,0.1148,89556.0,89534.0,0.02445517]
[1769547957480,0.13639727,89555.0,89534.0,0.02445517]
[1769547957690,0.16073417,89555.0,89534.0,0.02445517]
[1769547957901,0.16073417,89555.0,89529.0,0.05584754]
[1769547958092,0.13668367,89553.0,89530.0,0.05584669]
[1769547958243,0.0243369,89549.0,89520.0,0.00013998]
[1769547958608,0.32868072,89550.0,89520.0,0.06115469]
[1769547958609,0.0243369,89545.0,89520.0,0.06115469]
[1769547958815,0.13668367,89542.0,89520.0,0.06115469]
[1769547958965,0.13668367,89540.0,89520.0,0.06115469]
[1769547959777,0.0245051,89556.0,89540.0,0.00892959]
[1769547960159,0.13668367,89555.0,89532.0,0.16601269]
[1769547960295,0.13668367,89555.0,89532.0,0.02445517]
[1769547960676,0.13668367,89555.0,89534.0,0.05584429]
[1769547960894,0.13668367,89555.0,89532.0,0.02445517]
[1769547961792,0.0001682,89556.0,89534.0,0.02445517]
[1769547962001,0.0001682,89556.0,89520.0,0.38983541]
[1769547962002,0.0001682,89556.0,89530.0,0.08954305]
[1769547962213,0.13685187,89556.0,89521.0,0.05585219]
[1769547962431,0.16118877,89556.0,89520.0,0.06115469]
[1769547962662,0.16118877,89556.0,89526.0,0.02445517]
[1769547962874,0.16118877,89556.0,89530.0,0.02445517]
[1769547963081,0.16055564,89556.0,89530.0,0.02445517]
[1769547963294,0.16055564,89556.0,89532.0,0.02445517]
[1769547963995,0.16055564,89556.0,89531.0,0.14155752]
[1769547964234,0.16055564,89556.0,89532.0,0.02445517]
[1769547964641,0.16055564,89556.0,89533.0,0.02445517]
[1769547965500,0.16055564,89556.0,89533.0,0.02120929]
[1769547965711,0.13621874,89556.0,89533.0,0.02120929]
[1769547965941,0.16102057,89554.0,89533.0,0.02120929]
[1769547966350,0.13668367,89554.0,89533.0,0.02120929]
[1769547966590,0.13668367,89552.0,89533.0,0.02120929]
[1769547966800,0.13668367,89559.0,89533.0,0.05584526]
[1769547967002,0.0243369,89558.0,89534.0,0.02445517]
[1769547967213,0.13668367,89557.0,89534.0,0.02445517]
[1769547967418,0.16102057,89557.0,89534.0,0.02445517]
[1769547967851,0.16102057,89557.0,89526.0,0.22339687]
[1769547967852,0.00049,89560.0,89536.0,0.02445517]
[1769547968068,0.13717367,89560.0,89537.0,0.16601269]
[1769547968937,0.16102057,89558.0,89537.0,0.16601269]
[1769547969162,0.13668367,89556.0,89537.0,0.16601269]
[1769547969379,0.13668367,89556.0,89529.0,0.08954305]
[1769547969594,0.0243369,89553.0,89530.0,0.02445517]
[1769547969810,0.13668367,89552.0,89530.0,0.02445517]
[1769547970034,0.13668367,89552.0,89530.0,0.05584672]
[1769547970246,0.13668367,89552.0,89531.0,0.02445517]
[1769547970768,0.13668367,89550.0,89531.0,0.02445517]
[1769547971025,0.0243369,89547.0,89516.0,0.14155752]
[1769547971219,0.13668367,89544.0,89520.0,0.11700772]
[1769547971445,0.0243369,89541.0,89521.0,0.05585276]
[1769547971654,0.13668367,89542.0,89525.0,0.05584994]
[1769547971911,0.13668367,89542.0,89524.0,0.0803061]
[1769547972221,0.13668367,89542.0,89529.0,0.08954305]
[1769547972426,0.0243369,89547.0,89529.0,0.08954305]
[1769547972628,0.16102057,89547.0,89529.0,0.08954305]
[1769547973947,0.11472,89552.0,89520.0,0.11700754]
[1769547973948,0.13668367,89545.0,89520.0,0.06115469]
[1769547974159,0.0243369,89542.0,89520.0,0.06115469]
[1769547974331,0.13668367,89541.0,89520.0,0.06115469]
[1769547974536,0.13668367,89541.0,89520.0,0.22716738]
[1769547974899,0.13668367,89541.0,89521.0,0.02445517]
[1769547975150,0.16102057,89543.0,89522.0,0.14155752]
[1769547975366,0.13668367,89541.0,89522.0,0.14155752]
[1769547975800,0.13668367,89549.0,89523.0,0.05585145]
[1769547976007,0.13668367,89549.0,89526.0,0.02445517]
[1769547976189,0.16102057,89549.0,89527.0,0.16601269]
[1769547976431,0.16102057,89549.0,89528.0,0.02445517]
[1769547976811,0.13668367,89549.0,89528.0,0.02445517]
[1769547977083,0.16102057,89547.0,89528.0,0.02445517]
[1769547977300,0.0243369,89546.0,89520.0,0.11700774]
[1769547977510,0.13668367,89543.0,89522.0,0.02445517]
[1769547977721,0.13668367,89543.0,89523.0,0.16601269]
[1769547978340,0.13668367,89543.0,89524.0,0.02445517]
[1769547978763,0.11472,89552.0,89520.0,0.06115469]
[1769547978764,0.0243369,89542.0,89520.0,0.06115469]
[1769547978990,0.32868072,89550.0,89520.0,0.06115469]
[1769547978991,0.0243369,89538.0,89520.0,0.06115469]
[1769547979207,0.0243369,89534.0,89507.0,0.02445517]
[1769547979478,0.0243369,89534.0,89509.0,0.08954305]
[1769547979479,0.13668367,89529.0,89509.0,0.08954305]
[1769547979704,0.00013993,89534.0,89509.0,0.08954305]
[1769547979705,0.0243369,89526.0,89509.0,0.08954305]
[1769547979935,0.0243369,89526.0,89510.0,0.14155752]
[1769547980188,0.00013993,89534.0,89513.0,0.05585724]
[1769547980441,0.00013993,89534.0,89526.0,0.00492377]
[1769547980684,0.00013993,89534.0,89517.0,0.02445517]
[1769547980685,0.13668367,89533.0,89517.0,0.02445517]
[1769547980902,0.00013993,89534.0,89508.0,0.08954305]
[1769547980903,0.13668367,89531.0,89509.0,0.14155752]
[1769547981126,0.13668367,89531.0,89511.0,0.02445517]
[1769547981306,0.13668367,89531.0,89513.0,0.02445517]
[1769547981538,0.00013993,89534.0,89516.0,0.14155752]
[1769547981752,0.00013993,89534.0,89517.0,0.02445517]
[1769547981924,0.00013993,89534.0,89522.0,0.02445517]
[1769547982505,0.00013993,89534.0,89523.0,0.02445517]
[1769547983726,0.00013993,89534.0,89517.0,0.14155752]
[1769547983906,0.14060219,89533.0,89512.0,0.02484946]
[1769547984103,0.16412179,89533.0,89512.0,0.02484946]
[1769547984367,0.16412179,89533.0,89513.0,0.00063283]
[1769547984368,0.14060219,89533.0,89513.0,0.00063283]
[1769547984579,0.13351509,89529.0,89495.0,0.14541176]
[1769547984810,0.02337529,89526.0,89495.0,0.08954305]
[1769547985013,0.02337529,89522.0,89495.0,0.1503535]
[1769547985305,0.13351509,89517.0,89495.0,0.08507225]
[1769547985527,0.11472,89524.0,89483.0,0.0242618]
[1769547985528,0.02337529,89514.0,89483.0,0.0242618]
[1769547985732,0.32868072,89520.0,89483.0,0.0242618]
[1769547985733,0.02337529,89510.0,89492.0,0.06206046]
[1769547985947,0.13351509,89507.0,89483.0,0.0242618]
[1769547986169,0.13351509,89507.0,89484.0,0.22368251]
[1769547986392,0.13351509,89507.0,89485.0,0.0242618]
[1769547987094,0.13351509,89507.0,89485.0,0.02440153]
[1769547988067,0.11476,89511.0,89488.0,0.05587341]
[1769547988436,0.13351509,89510.0,89490.0,0.0242618]
[1769547989184,0.11476,89511.0,89492.0,0.0242618]
[1769547989387,0.13351509,89519.0,89492.0,0.0242618]
[1769547989634,0.13351509,89516.0,89492.0,0.0242618]
[1769547989980,0.13351509,89516.0,89488.0,0.13641358]
[1769547990176,0.00099399,89521.0,89487.0,0.08954305]
[1769547990177,0.13351509,89520.0,89497.0,0.05586762]
[1769547990380,0.13351509,89520.0,89498.0,0.0242618]
[1769547990616,0.13351509,89520.0,89500.0,0.0242618]
[1769547990816,0.07763399,89521.0,89487.0,0.08954305]
[1769547990817,0.00099399,89521.0,89503.0,0.0242618]
[1769547991015,0.00099399,89521.0,89503.0,0.00056269]
[1769547991222,0.00099399,89521.0,89506.0,0.0242618]
[1769547993028,0.00099399,89521.0,89507.0,0.0242618]
[1769547993240,0.13351509,89524.0,89507.0,0.0242618]
[1769547996609,0.13351509,89530.0,89490.0,0.32830505]
[1769547996826,0.15496206,89565.0,89481.0,0.36211728]
[1769547996827,0.13351509,89538.0,89520.0,0.0242618]
[1769547997046,0.32879505,89560.0,89491.0,0.13641358]
[1769547997047,0.02015297,89535.0,89491.0,0.13641358]
[1769547997260,0.13351509,89519.0,89492.0,0.00063373]
[1769547997497,0.13351509,89519.0,89494.0,0.05586905]
[1769547997710,0.13351509,89519.0,89496.0,0.0242618]
[1769547997919,0.02015297,89518.0,89497.0,0.00063383]
[1769547998163,0.15366806,89517.0,89497.0,0.00063383]
[1769547998378,0.15366806,89517.0,89496.0,0.0242618]
[1769547999028,0.13351509,89515.0,89491.0,0.00063383]
[1769547999271,0.00013993,89518.0,89492.0,0.0242618]
[1769547999272,0.13351509,89513.0,89492.0,0.0242618]
[1769547999516,0.13351509,89513.0,89493.0,0.02489561]
[1769548000000,0.00013993,89518.0,89494.0,0.13641358]
[1769548000234,0.00013993,89518.0,89502.0,0.0242618]
[1769548000928,0.13365502,89518.0,89502.0,0.0242618]
[1769548001172,0.13365502,89518.0,89500.0,0.0006338]
[1769548001433,0.15703031,89518.0,89495.0,0.08013055]
[1769548001677,0.15697031,89518.0,89496.0,0.02489558]
[1769548001916,0.15697031,89518.0,89497.0,0.0242618]
[1769548002134,0.15697031,89518.0,89498.0,0.02489556]
[1769548002598,0.15697031,89518.0,89501.0,0.0558649]
[1769548002599,7.993e-05,89518.0,89501.0,0.0558649]
[1769548002829,7.993e-05,89518.0,89502.0,0.0242618]
[1769548003083,7.993e-05,89518.0,89503.0,0.0242618]
[1769548005799,7.993e-05,89518.0,89499.0,0.13641358]
[1769548006004,7.993e-05,89518.0,89506.0,0.08012364]
[1769548006191,7.993e-05,89518.0,89506.0,0.08012354]
[1769548006545,7.993e-05,89518.0,89507.0,0.0242618]
[1769548007208,7.993e-05,89518.0,89476.0,0.479154]
[1769548007209,7.993e-05,89518.0,89486.0,0.27691723]
[1769548007425,0.00507623,89507.0,89497.0,0.0242618]
[1769548007622,0.00507623,89507.0,89499.0,0.05586652]
[1769548007824,0.15689038,89517.0,89497.0,0.13641358]
[1769548007946,0.15689038,89517.0,89498.0,0.0242618]
[1769548008141,0.13351509,89517.0,89505.0,0.05586274]
[1769548008346,0.13351509,89517.0,89504.0,0.05586311]
[1769548008783,0.13351509,89517.0,89505.0,0.05586269]
[1769548008972,0.13351509,89517.0,89501.0,0.0242618]
[1769548009160,0.13351509,89517.0,89501.0,0.08012673]
[1769548009370,0.13351509,89517.0,89501.0,0.08012697]
[1769548009777,0.13351509,89517.0,89501.0,0.0242618]
[1769548010427,0.13351509,89517.0,89501.0,0.0801268]
[1769548010804,0.13351509,89517.0,89502.0,0.05586425]
[1769548011019,0.13351509,89517.0,89503.0,0.05586401]
[1769548011221,0.13351509,89517.0,89503.0,0.05586383]
[1769548011423,0.13351509,89517.0,89499.0,0.22346573]
[1769548011424,7.993e-05,89518.0,89491.0,0.0242618]
[1769548011633,7.993e-05,89518.0,89505.0,0.0242618]
[1769548011841,7.993e-05,89518.0,89505.0,0.16067538]
[1769548012153,0.02684,89536.0,89516.0,0.13641358]
[1769548012154,0.16035509,89536.0,89516.0,0.13641358]
[1769548012410,0.16035509,89536.0,89517.0,0.0242618]
[1769548012947,0.11476,89543.0,89517.0,0.0242618]
[1769548013154,0.11489998,89543.0,89523.0,0.0242618]
[1769548013366,0.11489998,89543.0,89525.0,0.0242618]
[1769548013581,0.24841507,89543.0,89525.0,0.0242618]
[1769548014192,0.13351509,89542.0,89525.0,0.0242618]
[1769548014403,0.0243359,89541.0,89518.0,0.07884146]
[1769548014614,0.12800144,89538.0,89519.0,0.05585345]
[1769548014818,0.11489998,89543.0,89510.0,0.55174176]
[1769548014819,0.00013998,89543.0,89511.0,0.22343372]
[1769548015038,0.00013998,89543.0,89525.0,0.02298737]
[1769548015449,0.00013998,89543.0,89525.0,0.05584988]
[1769548015661,0.12800144,89542.0,89525.0,0.02298737]
[1769548016279,0.12800144,89540.0,89525.0,0.02298737]
[1769548016479,0.0243359,89539.0,89514.0,0.07884455]
[1769548016688,0.12800144,89538.0,89514.0,0.02298737]
[1769548016905,0.12800144,89538.0,89525.0,0.07883733]
[1769548017117,0.12800144,89538.0,89525.0,0.02298737]
[1769548017453,0.00013998,89543.0,89525.0,0.02298737]
[1769548017647,0.00013998,89543.0,89528.0,0.02298737]
[1769548018347,0.12800144,89542.0,89528.0,0.02298737]
[1769548018706,0.12814514,89542.0,89528.0,0.02298737]
[1769548019609,0.12814514,89542.0,89529.0,0.05584782]
[1769548019953,0.12814514,89542.0,89528.0,0.02298737]
[1769548020507,0.12800144,89541.0,89528.0,0.02298737]
[1769548021684,0.12814514,89541.0,89528.0,0.02298737]
[1769548022223,0.12800144,89527.0,89503.0,0.13630305]
[1769548022442,0.12800144,89527.0,89514.0,0.05585674]
[1769548023108,0.12800144,89527.0,89515.0,0.02298737]
[1769548023312,0.12800144,89527.0,89515.0,0.07884337]
[1769548023457,0.12800144,89527.0,89515.0,0.02298737]
[1769548023657,0.12800144,89527.0,89518.0,0.05585427]
[1769548024268,0.01115526,89533.0,89515.0,0.02298737]
[1769548024475,0.0001437,89538.0,89511.0,0.13630305]
[1769548024678,0.12814514,89538.0,89524.0,0.05585043]
[1769548024895,0.12814514,89538.0,89525.0,0.02298737]
[1769548025094,0.12814514,89538.0,89519.0,0.07884117]
[1769548025298,0.12814514,89538.0,89519.0,0.02298737]
[1769548025737,0.0001437,89538.0,89521.0,0.13630305]
[1769548026052,0.0001437,89538.0,89528.0,0.02298737]
[1769548026462,0.0001437,89538.0,89529.0,0.05584757]
[1769548026849,0.0001437,89538.0,89528.0,0.07883553]
[1769548027056,0.0001437,89538.0,89528.0,0.02298737]
[1769548027290,0.12814514,89538.0,89528.0,0.02298737]
[1769548027489,0.12814514,89538.0,89528.0,0.07883555]
[1769548027647,0.12814514,89538.0,89528.0,0.02298737]
[1769548027863,0.00430208,89528.0,89491.0,0.44696907]
[1769548028064,0.12800144,89527.0,89510.0,0.05585955]
[1769548028262,0.12800144,89527.0,89503.0,0.02298737]
[1769548028422,0.12800144,89527.0,89509.0,0.02298737]
[1769548028796,0.12800144,89527.0,89511.0,0.02298737]
[1769548029010,0.12800144,89527.0,89512.0,0.02298737]
[1769548029641,0.12800144,89527.0,89512.0,0.0558581]
[1769548029867,0.12800144,89527.0,89513.0,0.02298737]
[1769548030075,0.12800144,89537.0,89515.0,0.02298737]
[1769548030275,0.12800144,89537.0,89517.0,0.02298737]
[1769548030634,0.12800144,89537.0,89518.0,0.02298737]
[1769548030842,0.0001437,89538.0,89511.0,0.05585892]
[1769548030843,0.00665718,89534.0,89511.0,0.05585892]
[1769548031024,0.12800144,89533.0,89513.0,0.05585776]
[1769548031229,0.12800144,89533.0,89506.0,0.2234469]
[1769548031486,0.12800144,89533.0,89515.0,0.02298737]
[1769548031713,0.0001437,89538.0,89498.0,0.02298737]
[1769548031714,0.08954305,89532.0,89498.0,0.02298737]
[1769548031896,0.0001437,89538.0,89480.0,0.32858105]
[1769548031897,0.12800144,89528.0,89499.0,0.13630305]
[1769548032100,0.12800144,89526.0,89500.0,0.13630305]
[1769548032253,0.12800144,89526.0,89506.0,0.02298737]
[1769548032489,0.13465862,89526.0,89506.0,0.02298737]
[1769548032703,0.0001437,89538.0,89526.0,0.01]
[1769548032704,0.00665718,89537.0,89526.0,0.01]
[1769548033050,0.0001437,89538.0,89510.0,0.32830505]
[1769548033051,0.12800144,89536.0,89520.0,0.02298737]
[1769548033182,0.12800144,89536.0,89516.0,0.22342184]
[1769548033388,0.12800144,89536.0,89517.0,0.05585531]
[1769548033611,0.12800144,89536.0,89522.0,0.07883905]
[1769548033786,0.12800144,89536.0,89523.0,0.05585152]
[1769548034007,0.12800144,89536.0,89522.0,0.07883927]
[1769548034435,0.12800144,89536.0,89522.0,0.02298737]
[1769548034914,0.12800144,89536.0,86657.0,0.00456956]
[1769548034915,0.12800144,89536.0,89520.0,0.02298737]
[1769548035120,0.0001437,89538.0,89521.0,0.05585281]
[1769548035320,0.12814514,89538.0,89522.0,0.02298737]
[1769548035804,0.12814514,89538.0,89512.0,0.22343351]
[1769548035805,0.12800144,89536.0,89516.0,0.05585555]
[1769548036006,0.12800144,89536.0,89511.0,0.02298737]
[1769548036252,0.12800144,89536.0,89510.0,0.32830505]
[1769548036480,0.12800144,89534.0,89518.0,0.05585464]
[1769548036694,0.13465862,89534.0,89511.0,0.24642166]
[1769548036914,0.13465862,89534.0,89515.0,0.05585642]
[1769548037116,0.13465862,89534.0,89513.0,0.0558578]
[1769548037117,0.01565349,89533.0,89513.0,0.05585721]
[1769548037293,0.12800144,89532.0,89500.0,0.32830505]
[1769548037631,0.12800144,89532.0,89513.0,0.07884508]
[1769548037832,0.12800144,89532.0,89513.0,0.02298737]
[1769548038171,0.0001437,89538.0,89508.0,0.05586058]
[1769548038172,0.12800144,89530.0,89508.0,0.05586058]
[1769548038333,0.12800144,89528.0,89507.0,0.07884854]
[1769548038530,0.01565349,89525.0,89509.0,0.05585989]
[1769548038730,0.12800144,89524.0,89509.0,0.05585989]
[1769548038937,0.12800144,89524.0,89510.0,0.05585911]
[1769548039112,0.01565349,89525.0,89512.0,0.05585801]
[1769548039330,0.01565349,89525.0,89510.0,0.02298737]
[1769548039331,0.12800144,89525.0,89510.0,0.02298737]
[1769548039728,0.0001437,89538.0,89504.0,0.05586301]
[1769548039729,0.12800144,89523.0,89504.0,0.05586301]
[1769548040014,0.0001437,89538.0,89501.0,0.02298737]
[1769548040015,0.0243359,89520.0,89501.0,0.02298737]
[1769548040175,0.12800144,89519.0,89503.0,0.05586378]
[1769548040373,0.12800144,89519.0,89502.0,0.06064587]
[1769548040374,0.12800144,89519.0,89502.0,0.05586416]
[1769548040582,0.12800144,89519.0,89503.0,0.0558639]
[1769548040788,0.12800144,89519.0,89506.0,0.05586193]
[1769548041167,0.0001437,89538.0,89501.0,0.06079955]
[1769548041364,0.0243359,89534.0,89501.0,0.02298737]
[1769548041548,0.12800144,89531.0,89508.0,0.02298737]
[1769548041760,0.0243359,89528.0,89509.0,0.0002274]
[1769548041971,0.15233734,89527.0,89509.0,0.00048335]
[1769548042173,0.12800144,89527.0,89511.0,0.02298737]
[1769548043411,0.12713921,89525.0,89508.0,0.00048383]
[1769548043717,0.12713921,89521.0,89504.0,0.00048384]
[1769548043957,0.0001437,89538.0,89500.0,0.414072]
[1769548043958,0.0001437,89538.0,89522.0,0.02317794]
[1769548044475,0.0001437,89538.0,89514.0,0.02439871]
[1769548044476,0.12826793,89537.0,89514.0,0.02439871]
[1769548044673,0.12826793,89535.0,89514.0,0.0248827]
[1769548044974,0.14841856,89531.0,89514.0,0.05634096]
[1769548045337,0.14841856,89531.0,89514.0,0.00048399]
[1769548045728,0.14841856,89531.0,89514.0,0.05634079]
[1769548045945,0.0001437,89538.0,89514.0,0.00048399]
[1769548046231,0.12841163,89538.0,89520.0,0.02439871]
[1769548047667,0.12841163,89538.0,89519.0,0.02439871]
[1769548047989,0.02015063,89535.0,89512.0,0.02439871]
[1769548048187,0.12826793,89532.0,89513.0,0.0558578]
[1769548048445,0.14841856,89530.0,89512.0,0.02439871]
[1769548048654,0.0001437,89538.0,89500.0,0.06258901]
[1769548048655,0.12826793,89528.0,89500.0,0.06258901]
[1769548048901,0.0001437,89538.0,89500.0,0.06258901]
[1769548048902,0.02015063,89525.0,89505.0,0.05586231]
[1769548049103,0.14841856,89524.0,89505.0,0.05586229]
[1769548049339,0.14841856,89524.0,89506.0,0.05586181]
[1769548049549,0.14841856,89524.0,89509.0,0.05586]
[1769548049753,0.14841856,89524.0,89510.0,0.05585917]
[1769548049949,0.14841856,89524.0,89509.0,0.05586022]
[1769548050380,0.14841856,89524.0,89511.0,0.05585856]
[1769548050535,0.14841856,89524.0,89510.0,0.05585954]
[1769548050748,0.14841856,89524.0,89510.0,0.05585966]
[1769548051387,0.14841856,89524.0,89509.0,0.05586009]